[Event "Late-Titled-Tuesday-Blitz-July-09-2024"]
[Site "Chess.com"]
[Date "2024.07.09"]
[Round "11"]
[White "scrambleyourbrain"]
[Black "bob1263"]
[Result "0-1"]
[WhiteElo "2374"]
[BlackElo "2532"]
[TimeControl "180+1"]
[EndTime "15:59:20 PDT"]
[Termination "bob1263 won by resignation"]

1. e4 {[%clk 0:03:00.9]} 1... c5 {[%clk 0:02:58.9]} 2. Nf3 {[%clk 0:03:01]} 2...
e6 {[%clk 0:02:59]} 3. d4 {[%clk 0:03:01.6]} 3... cxd4 {[%clk 0:02:59.1]} 4.
Nxd4 {[%clk 0:03:02.5]} 4... Nf6 {[%clk 0:02:59.1]} 5. Nc3 {[%clk 0:03:02.7]}
5... d6 {[%clk 0:02:59.5]} 6. g4 {[%clk 0:03:01.6]} 6... Nc6 {[%clk 0:02:56.8]}
7. g5 {[%clk 0:03:00.7]} 7... Nd7 {[%clk 0:02:56.1]} 8. f4 {[%clk 0:03:00.5]}
8... h6 {[%clk 0:02:46.3]} 9. g6 {[%clk 0:02:58.4]} 9... Qh4+ {[%clk 0:02:36.5]}
10. Ke2 {[%clk 0:02:57.5]} 10... Qh5+ {[%clk 0:02:19.3]} 11. Ke1 {[%clk
0:02:51.3]} 11... Qxd1+ {[%clk 0:02:17.9]} 0-1

[Event "Late-Titled-Tuesday-Blitz-July-09-2024"]
[Site "Chess.com"]
[Date "2024.07.09"]
[Round "11"]
[White "Kowarenai"]
[Black "Statham_01"]
[Result "0-1"]
[WhiteElo "2557"]
[BlackElo "2667"]
[TimeControl "180+1"]
[EndTime "16:00:39 PDT"]
[Termination "Statham_01 won by resignation"]

1. b3 {[%clk 0:03:00.1]} 1... e5 {[%clk 0:02:57.7]} 2. Bb2 {[%clk 0:03:00.1]}
2... Nc6 {[%clk 0:02:58.1]} 3. e3 {[%clk 0:03:00.4]} 3... d5 {[%clk 0:02:58.2]}
4. Bb5 {[%clk 0:03:00.3]} 4... Ne7 {[%clk 0:02:58.7]} 5. Bxe5 {[%clk 0:02:54.8]}
5... a6 {[%clk 0:02:59]} 6. Bxc6+ {[%clk 0:02:55.1]} 6... Nxc6 {[%clk
0:02:59.9]} 7. Bg3 {[%clk 0:02:55.3]} 7... h5 {[%clk 0:03:00]} 8. h4 {[%clk
0:02:51.5]} 8... Bd6 {[%clk 0:02:58.6]} 9. Bxd6 {[%clk 0:02:48.6]} 9... Qxd6
{[%clk 0:02:59.5]} 10. d4 {[%clk 0:02:49]} 10... Bg4 {[%clk 0:02:59]} 11. Nf3
{[%clk 0:02:45.1]} 11... O-O-O {[%clk 0:02:57.8]} 12. c3 {[%clk 0:02:45.3]}
12... Rde8 {[%clk 0:02:56.2]} 13. Qe2 {[%clk 0:02:42.8]} 13... f5 {[%clk
0:02:53.7]} 14. g3 {[%clk 0:02:40.7]} 14... f4 {[%clk 0:02:45.1]} 15. gxf4
{[%clk 0:02:40.5]} 15... Rhf8 {[%clk 0:02:44.8]} 16. Nbd2 {[%clk 0:02:22.5]}
16... Rxf4 {[%clk 0:02:43.2]} 17. exf4 {[%clk 0:02:20.9]} 17... Rxe2+ {[%clk
0:02:44.1]} 18. Kxe2 {[%clk 0:02:21.8]} 18... Ne7 {[%clk 0:02:42.2]} 19. Ke3
{[%clk 0:02:04.5]} 19... Nf5+ {[%clk 0:02:40.6]} 20. Kd3 {[%clk 0:02:05]} 20...
Qxf4 {[%clk 0:02:40.6]} 21. Ne5 {[%clk 0:02:05.2]} 21... Qxf2 {[%clk 0:02:34.9]}
22. Raf1 {[%clk 0:01:59.2]} 22... Be2+ {[%clk 0:02:33.9]} 23. Kc2 {[%clk
0:01:59.2]} 23... Ne3+ {[%clk 0:02:23.9]} 0-1

[Event "Late-Titled-Tuesday-Blitz-July-09-2024"]
[Site "Chess.com"]
[Date "2024.07.09"]
[Round "11"]
[White "Nekoo04"]
[Black "yaguigor"]
[Result "0-1"]
[WhiteElo "2432"]
[BlackElo "2626"]
[TimeControl "180+1"]
[EndTime "16:01:29 PDT"]
[Termination "yaguigor won by resignation"]

1. Nf3 {[%clk 0:03:00.9]} 1... d5 {[%clk 0:02:58.1]} 2. e3 {[%clk 0:03:00.4]}
2... Nf6 {[%clk 0:02:56.2]} 3. c4 {[%clk 0:03:00.3]} 3... c6 {[%clk 0:02:55.2]}
4. Nc3 {[%clk 0:03:00.7]} 4... e6 {[%clk 0:02:54.3]} 5. b3 {[%clk 0:03:00.9]}
5... Bd6 {[%clk 0:02:53.7]} 6. Bb2 {[%clk 0:03:01.4]} 6... O-O {[%clk
0:02:53.1]} 7. Qc2 {[%clk 0:03:01.8]} 7... e5 {[%clk 0:02:52.5]} 8. cxd5 {[%clk
0:03:01.9]} 8... cxd5 {[%clk 0:02:53.4]} 9. Nb5 {[%clk 0:03:02.5]} 9... Nc6
{[%clk 0:02:53.5]} 10. Nxd6 {[%clk 0:03:01.9]} 10... Qxd6 {[%clk 0:02:54.4]} 11.
Bb5 {[%clk 0:02:58.9]} 11... Nb4 {[%clk 0:02:50.8]} 12. Qb1 {[%clk 0:02:57.1]}
12... Qc5 {[%clk 0:02:46.9]} 13. Be2 {[%clk 0:02:11.6]} 13... Nc2+ {[%clk
0:02:43.2]} 14. Kd1 {[%clk 0:02:12.1]} 14... Nxa1 {[%clk 0:02:42.4]} 15. Qxa1
{[%clk 0:02:13]} 15... Ne4 {[%clk 0:02:35]} 16. Ke1 {[%clk 0:02:09.3]} 16... f6
{[%clk 0:02:32.4]} 17. d3 {[%clk 0:02:05.2]} 17... Qb4+ {[%clk 0:02:28.1]} 18.
Kf1 {[%clk 0:02:03.7]} 18... Nd2+ {[%clk 0:02:24.7]} 19. Nxd2 {[%clk 0:02:03.8]}
19... Qxd2 {[%clk 0:02:25.4]} 20. Bc3 {[%clk 0:02:04.2]} 20... Qc2 {[%clk
0:02:24.5]} 21. f3 {[%clk 0:02:03.8]} 21... Bf5 {[%clk 0:02:18.8]} 22. e4 {[%clk
0:01:59.7]} 22... Rac8 {[%clk 0:02:12.5]} 23. Be1 {[%clk 0:01:51.6]} 23... Be6
{[%clk 0:02:10.3]} 24. Kf2 {[%clk 0:01:49]} 24... Qc5+ {[%clk 0:02:05.1]} 25.
Kg3 {[%clk 0:01:48.3]} 25... Qe3 {[%clk 0:02:04]} 26. Qd1 {[%clk 0:01:41.7]}
26... Rc1 {[%clk 0:02:01.1]} 0-1

[Event "Late-Titled-Tuesday-Blitz-July-09-2024"]
[Site "Chess.com"]
[Date "2024.07.09"]
[Round "11"]
[White "Indefatigable11"]
[Black "anderson2361"]
[Result "0-1"]
[WhiteElo "2398"]
[BlackElo "2329"]
[TimeControl "180+1"]
[EndTime "16:01:44 PDT"]
[Termination "anderson2361 won by checkmate"]

1. d4 {[%clk 0:03:00.9]} 1... d5 {[%clk 0:02:59.7]} 2. c4 {[%clk 0:03:00.2]}
2... e6 {[%clk 0:03:00.4]} 3. Nc3 {[%clk 0:02:59.7]} 3... a6 {[%clk 0:03:00.5]}
4. cxd5 {[%clk 0:02:58.2]} 4... exd5 {[%clk 0:03:01.4]} 5. Nf3 {[%clk
0:02:57.5]} 5... Nf6 {[%clk 0:03:01.9]} 6. Bf4 {[%clk 0:02:57.3]} 6... Be7
{[%clk 0:03:02.5]} 7. e3 {[%clk 0:02:57.3]} 7... O-O {[%clk 0:03:01.8]} 8. Bd3
{[%clk 0:02:57.1]} 8... Nh5 {[%clk 0:02:51.7]} 9. Be5 {[%clk 0:02:52.5]} 9... f6
{[%clk 0:02:47.2]} 10. Bg3 {[%clk 0:02:52]} 10... Nxg3 {[%clk 0:02:45.3]} 11.
hxg3 {[%clk 0:02:51.9]} 11... g6 {[%clk 0:02:45.9]} 12. Qc2 {[%clk 0:02:51]}
12... Kg7 {[%clk 0:02:44.9]} 13. Nh4 {[%clk 0:02:46.8]} 13... f5 {[%clk
0:02:43.8]} 14. Nf3 {[%clk 0:02:46.6]} 14... Be6 {[%clk 0:02:36.4]} 15. O-O-O
{[%clk 0:02:43.4]} 15... Nd7 {[%clk 0:02:36]} 16. g4 {[%clk 0:02:34]} 16... fxg4
{[%clk 0:02:29.2]} 17. Nh4 {[%clk 0:02:34.3]} 17... Bxh4 {[%clk 0:02:27.4]} 18.
g3 {[%clk 0:02:25]} 18... Bg5 {[%clk 0:02:23.1]} 19. Rh2 {[%clk 0:02:25.1]}
19... Qf6 {[%clk 0:02:14.8]} 20. Rdh1 {[%clk 0:02:23.5]} 20... h5 {[%clk
0:02:13]} 21. Ne2 {[%clk 0:02:20.1]} 21... c5 {[%clk 0:02:11]} 22. dxc5 {[%clk
0:02:19.3]} 22... Nxc5 {[%clk 0:02:09.6]} 23. Nd4 {[%clk 0:02:17.3]} 23... Rac8
{[%clk 0:02:05.9]} 24. Kb1 {[%clk 0:02:16.3]} 24... Nxd3 {[%clk 0:02:04.5]} 25.
Qxd3 {[%clk 0:02:13.6]} 25... Bf5 {[%clk 0:02:05]} 26. Nxf5+ {[%clk 0:02:07.5]}
26... Qxf5 {[%clk 0:02:05.9]} 27. Qxf5 {[%clk 0:02:05.4]} 27... Rxf5 {[%clk
0:02:06.8]} 28. Rd1 {[%clk 0:02:04.3]} 28... Rcf8 {[%clk 0:02:06]} 29. Rd2
{[%clk 0:02:04.4]} 29... d4 {[%clk 0:02:03.2]} 30. Rxd4 {[%clk 0:02:01.2]} 30...
Rxf2 {[%clk 0:02:03.6]} 31. Rd7+ {[%clk 0:01:58.5]} 31... Kh6 {[%clk 0:02:03.3]}
32. Rxf2 {[%clk 0:01:53.7]} 32... Rxf2 {[%clk 0:02:02.9]} 33. Rxb7 {[%clk
0:01:54.6]} 33... h4 {[%clk 0:02:02.8]} 34. gxh4 {[%clk 0:01:53.5]} 34... Bxh4
{[%clk 0:02:03.7]} 35. a4 {[%clk 0:01:52.6]} 35... g3 {[%clk 0:02:02.8]} 36. b4
{[%clk 0:01:51.1]} 36... g2 {[%clk 0:02:02.9]} 37. Rc7 {[%clk 0:01:50.8]} 37...
g1=Q+ {[%clk 0:02:01.5]} 38. Rc1 {[%clk 0:01:51.7]} 38... Qh2 {[%clk 0:02:00.8]}
39. b5 {[%clk 0:01:49.5]} 39... Rb2+ {[%clk 0:02:01.2]} 40. Ka1 {[%clk
0:01:48.6]} 40... Ra2+ {[%clk 0:02:02.1]} 41. Kb1 {[%clk 0:01:47.8]} 41... Qb2#
{[%clk 0:02:03]} 0-1

[Event "Late-Titled-Tuesday-Blitz-July-09-2024"]
[Site "Chess.com"]
[Date "2024.07.09"]
[Round "11"]
[White "KaydenTroffChess"]
[Black "ValeriyGrinev"]
[Result "1-0"]
[WhiteElo "2876"]
[BlackElo "2705"]
[TimeControl "180+1"]
[EndTime "16:02:08 PDT"]
[Termination "KaydenTroffChess won by resignation"]

1. d4 {[%clk 0:03:00.9]} 1... d5 {[%clk 0:02:55.8]} 2. Nf3 {[%clk 0:03:01.4]}
2... Nf6 {[%clk 0:02:55.6]} 3. Bf4 {[%clk 0:03:02]} 3... e6 {[%clk 0:02:55.9]}
4. e3 {[%clk 0:03:02.6]} 4... c5 {[%clk 0:02:55.2]} 5. Nc3 {[%clk 0:03:02.1]}
5... Bd6 {[%clk 0:02:55.7]} 6. dxc5 {[%clk 0:03:00.6]} 6... Bxc5 {[%clk
0:02:55.4]} 7. Nb5 {[%clk 0:03:00.5]} 7... Na6 {[%clk 0:02:52.4]} 8. c3 {[%clk
0:03:00.1]} 8... O-O {[%clk 0:02:52.1]} 9. Ne5 {[%clk 0:03:00.3]} 9... Bd7
{[%clk 0:02:43.6]} 10. a4 {[%clk 0:02:59.1]} 10... Nb8 {[%clk 0:02:41.7]} 11.
Bd3 {[%clk 0:02:38]} 11... a6 {[%clk 0:02:41.3]} 12. Nd4 {[%clk 0:02:37.6]}
12... Nc6 {[%clk 0:02:40.9]} 13. O-O {[%clk 0:02:32.1]} 13... Rc8 {[%clk
0:02:38.1]} 14. Qf3 {[%clk 0:02:31]} 14... Nxe5 {[%clk 0:02:36.7]} 15. Bxe5
{[%clk 0:02:30.9]} 15... Be7 {[%clk 0:02:37.6]} 16. Qh3 {[%clk 0:02:28.6]} 16...
g6 {[%clk 0:02:35.4]} 17. Nf3 {[%clk 0:02:23.8]} 17... Ne4 {[%clk 0:02:34.4]}
18. Bxe4 {[%clk 0:02:18.7]} 18... dxe4 {[%clk 0:02:35.3]} 19. Qh6 {[%clk
0:02:18.9]} 19... f6 {[%clk 0:02:32.8]} 20. Ng5 {[%clk 0:02:18.7]} 20... Rf7
{[%clk 0:01:39.6]} 21. Nxf7 {[%clk 0:02:18.2]} 21... Kxf7 {[%clk 0:01:34.1]} 22.
Qxh7+ {[%clk 0:02:17.2]} 22... Kf8 {[%clk 0:01:32.8]} 23. Qxg6 {[%clk
0:02:11.7]} 23... fxe5 {[%clk 0:01:27.9]} 24. f4 {[%clk 0:02:06.9]} 24... exf3
{[%clk 0:01:23.5]} 25. Rxf3+ {[%clk 0:02:06.5]} 25... Bf6 {[%clk 0:01:21.5]} 26.
Rxf6+ {[%clk 0:02:06.1]} 26... Ke7 {[%clk 0:01:20.6]} 27. Rf7+ {[%clk
0:01:53.1]} 27... Kd6 {[%clk 0:01:15.4]} 28. Rxd7+ {[%clk 0:01:42.9]} 28... Kxd7
{[%clk 0:01:12.4]} 29. Rd1+ {[%clk 0:01:42]} 1-0

[Event "Late-Titled-Tuesday-Blitz-July-09-2024"]
[Site "Chess.com"]
[Date "2024.07.09"]
[Round "11"]
[White "BogdanDeac"]
[Black "Jospem"]
[Result "0-1"]
[WhiteElo "2955"]
[BlackElo "3089"]
[TimeControl "180+1"]
[EndTime "16:02:09 PDT"]
[Termination "Jospem won by resignation"]

1. d4 {[%clk 0:03:00.9]} 1... a5 {[%clk 0:03:00.9]} 2. e4 {[%clk 0:03:00.5]}
2... a4 {[%clk 0:03:01.8]} 3. Nf3 {[%clk 0:02:55]} 3... e6 {[%clk 0:03:02.7]} 4.
Bd3 {[%clk 0:02:54.8]} 4... d5 {[%clk 0:03:03.6]} 5. exd5 {[%clk 0:02:49.2]}
5... exd5 {[%clk 0:03:04.5]} 6. O-O {[%clk 0:02:49.4]} 6... Nf6 {[%clk
0:03:05.1]} 7. Re1+ {[%clk 0:02:47.5]} 7... Be7 {[%clk 0:03:05.6]} 8. c3 {[%clk
0:02:47.1]} 8... O-O {[%clk 0:03:05.8]} 9. Bc2 {[%clk 0:02:47.3]} 9... c5 {[%clk
0:03:05.6]} 10. Bxa4 {[%clk 0:02:37.7]} 10... Bg4 {[%clk 0:03:05.3]} 11. Be3
{[%clk 0:02:37.1]} 11... Bxf3 {[%clk 0:03:01.4]} 12. gxf3 {[%clk 0:02:36.7]}
12... c4 {[%clk 0:03:01.8]} 13. Bc2 {[%clk 0:02:36.3]} 13... Ra6 {[%clk
0:03:01.5]} 14. Bf4 {[%clk 0:02:32.7]} 14... Bd6 {[%clk 0:02:59.8]} 15. Bg3
{[%clk 0:02:32.3]} 15... g6 {[%clk 0:02:59.6]} 16. f4 {[%clk 0:02:26.4]} 16...
Nh5 {[%clk 0:02:57.9]} 17. f5 {[%clk 0:02:26.5]} 17... Qg5 {[%clk 0:02:58.1]}
18. Qf3 {[%clk 0:02:20]} 18... Rb6 {[%clk 0:02:56]} 19. b3 {[%clk 0:02:17.4]}
19... Nd7 {[%clk 0:02:55.7]} 20. Kh1 {[%clk 0:02:09.6]} 20... Ndf6 {[%clk
0:02:54.8]} 21. Rg1 {[%clk 0:02:09]} 21... Bxg3 {[%clk 0:02:54.5]} 22. hxg3
{[%clk 0:02:05]} 22... cxb3 {[%clk 0:02:54.7]} 23. axb3 {[%clk 0:02:04.4]} 23...
Ng4 {[%clk 0:02:54.8]} 24. Kg2 {[%clk 0:01:54.8]} 24... Re8 {[%clk 0:02:51.4]}
25. Ra2 {[%clk 0:00:19.5]} 25... Ne3+ {[%clk 0:02:49.8]} 26. Kh2 {[%clk
0:00:10.6]} 26... Qh6 {[%clk 0:02:47.8]} 27. fxe3 {[%clk 0:00:10.1]} 27... Nf4+
{[%clk 0:02:47.3]} 0-1

[Event "Late-Titled-Tuesday-Blitz-July-09-2024"]
[Site "Chess.com"]
[Date "2024.07.09"]
[Round "11"]
[White "Vladimir_Zakhartsov"]
[Black "champ2005"]
[Result "0-1"]
[WhiteElo "2906"]
[BlackElo "3045"]
[TimeControl "180+1"]
[EndTime "16:02:49 PDT"]
[Termination "champ2005 won by resignation"]

1. e4 {[%clk 0:03:00.9]} 1... c6 {[%clk 0:02:55.7]} 2. Nf3 {[%clk 0:02:59.3]}
2... d5 {[%clk 0:02:54.9]} 3. Nc3 {[%clk 0:02:59.6]} 3... dxe4 {[%clk
0:02:54.4]} 4. Nxe4 {[%clk 0:03:00.3]} 4... Nf6 {[%clk 0:02:55.2]} 5. Nxf6+
{[%clk 0:03:00.5]} 5... exf6 {[%clk 0:02:54.8]} 6. Bc4 {[%clk 0:03:00.9]} 6...
Be7 {[%clk 0:02:55]} 7. d4 {[%clk 0:02:56.1]} 7... O-O {[%clk 0:02:55.6]} 8. h3
{[%clk 0:02:48.6]} 8... Bd6 {[%clk 0:02:53.6]} 9. O-O {[%clk 0:02:48.3]} 9...
Nd7 {[%clk 0:02:53]} 10. Re1 {[%clk 0:02:48.4]} 10... Re8 {[%clk 0:02:53.4]} 11.
Rxe8+ {[%clk 0:02:45.7]} 11... Qxe8 {[%clk 0:02:54.3]} 12. c3 {[%clk 0:02:46.1]}
12... Nf8 {[%clk 0:02:54.3]} 13. Qe2 {[%clk 0:02:44.1]} 13... Be6 {[%clk
0:02:51.8]} 14. Bxe6 {[%clk 0:02:41]} 14... Nxe6 {[%clk 0:02:52.7]} 15. Bd2
{[%clk 0:02:40.2]} 15... Qd7 {[%clk 0:02:52.5]} 16. Re1 {[%clk 0:02:39.5]} 16...
Rd8 {[%clk 0:02:39.4]} 17. g3 {[%clk 0:02:28.1]} 17... Bc7 {[%clk 0:02:35.9]}
18. Kg2 {[%clk 0:02:25.1]} 18... b5 {[%clk 0:02:36.5]} 19. b3 {[%clk 0:02:18.3]}
19... h6 {[%clk 0:02:33.8]} 20. h4 {[%clk 0:02:18.6]} 20... Ba5 {[%clk
0:02:27.8]} 21. Qe4 {[%clk 0:02:16.9]} 21... Qd5 {[%clk 0:02:14.1]} 22. Qxd5
{[%clk 0:02:15.6]} 22... cxd5 {[%clk 0:02:15]} 23. b4 {[%clk 0:02:15.1]} 23...
Bb6 {[%clk 0:02:13.4]} 24. a4 {[%clk 0:02:15.7]} 24... a6 {[%clk 0:02:10]} 25.
Ra1 {[%clk 0:02:15.7]} 25... h5 {[%clk 0:01:57.4]} 26. Ne1 {[%clk 0:02:11.7]}
26... Kh7 {[%clk 0:01:39.2]} 27. Nd3 {[%clk 0:02:11.4]} 27... Kg6 {[%clk
0:01:38.9]} 28. Nc5 {[%clk 0:02:04.9]} 28... Bxc5 {[%clk 0:01:36.2]} 29. bxc5
{[%clk 0:02:02.7]} 29... Kf5 {[%clk 0:01:34.7]} 30. axb5 {[%clk 0:01:57.6]}
30... axb5 {[%clk 0:01:35.6]} 31. Ra6 {[%clk 0:01:51.8]} 31... Ke4 {[%clk
0:01:33.6]} 32. Rb6 {[%clk 0:01:39.2]} 32... Kd3 {[%clk 0:01:32.5]} 33. Be1
{[%clk 0:01:39.7]} 33... Ke2 {[%clk 0:01:30.8]} 34. Rxb5 {[%clk 0:01:35]} 34...
Kxe1 {[%clk 0:01:30.4]} 35. Rb7 {[%clk 0:01:34.1]} 35... Kd2 {[%clk 0:01:24.9]}
36. Rxf7 {[%clk 0:01:32]} 36... Kxc3 {[%clk 0:01:25.4]} 37. c6 {[%clk
0:01:32.5]} 37... Kxd4 {[%clk 0:01:21]} 38. f4 {[%clk 0:01:32.7]} 38... Ke4
{[%clk 0:01:16.3]} 39. Re7 {[%clk 0:01:28.9]} 39... Kf5 {[%clk 0:01:16.1]} 40.
Kf2 {[%clk 0:01:27.5]} 40... Rc8 {[%clk 0:01:15.6]} 0-1

[Event "Late-Titled-Tuesday-Blitz-July-09-2024"]
[Site "Chess.com"]
[Date "2024.07.09"]
[Round "11"]
[White "Korchmar_Vasiliy"]
[Black "fugadelafuga"]
[Result "1-0"]
[WhiteElo "2614"]
[BlackElo "2459"]
[TimeControl "180+1"]
[EndTime "16:02:54 PDT"]
[Termination "Korchmar_Vasiliy won by resignation"]

1. d4 {[%clk 0:03:00.9]} 1... Nf6 {[%clk 0:02:59.9]} 2. c4 {[%clk 0:03:01.1]}
2... c5 {[%clk 0:03:00.3]} 3. d5 {[%clk 0:02:57.8]} 3... b5 {[%clk 0:03:00.2]}
4. b3 {[%clk 0:02:55.9]} 4... g6 {[%clk 0:02:58.3]} 5. Bb2 {[%clk 0:02:54.9]}
5... Qa5+ {[%clk 0:02:56.6]} 6. Bc3 {[%clk 0:02:45.8]} 6... b4 {[%clk
0:02:56.5]} 7. Bb2 {[%clk 0:02:40.6]} 7... Bg7 {[%clk 0:02:56.2]} 8. e4 {[%clk
0:02:34.1]} 8... d6 {[%clk 0:02:54.8]} 9. f4 {[%clk 0:02:31.2]} 9... O-O {[%clk
0:02:51.5]} 10. Bd3 {[%clk 0:02:20.3]} 10... Nh5 {[%clk 0:02:34.2]} 11. Bxg7
{[%clk 0:02:18.4]} 11... Kxg7 {[%clk 0:02:28.5]} 12. Qf3 {[%clk 0:02:10.7]}
12... e5 {[%clk 0:02:22.2]} 13. fxe5 {[%clk 0:02:02.2]} 13... dxe5 {[%clk
0:02:23.1]} 14. Ne2 {[%clk 0:02:01.8]} 14... f5 {[%clk 0:02:19.2]} 15. exf5
{[%clk 0:01:55.8]} 15... Bxf5 {[%clk 0:02:19.1]} 16. O-O {[%clk 0:01:47.1]}
16... Nd7 {[%clk 0:02:19.2]} 17. Nd2 {[%clk 0:01:40.3]} 17... Qb6 {[%clk
0:01:58.3]} 18. Qe3 {[%clk 0:01:25]} 18... Bxd3 {[%clk 0:01:54.4]} 19. Qxd3
{[%clk 0:01:25.7]} 19... Nhf6 {[%clk 0:01:48.4]} 20. Ng3 {[%clk 0:01:23.9]}
20... a5 {[%clk 0:01:44.9]} 21. Nde4 {[%clk 0:01:23.5]} 21... a4 {[%clk
0:01:44.3]} 22. Ng5 {[%clk 0:01:23.1]} 22... Rf7 {[%clk 0:01:39.5]} 23. Nxf7
{[%clk 0:01:22.5]} 23... Kxf7 {[%clk 0:01:38.8]} 24. Ne4 {[%clk 0:01:22.7]}
24... axb3 {[%clk 0:01:36.5]} 25. axb3 {[%clk 0:01:17.8]} 25... Ra3 {[%clk
0:01:36]} 26. Qh3 {[%clk 0:01:14]} 26... Rxa1 {[%clk 0:01:28.8]} 27. Rxa1 {[%clk
0:01:14.9]} 27... Kg7 {[%clk 0:01:24.6]} 28. Nxf6 {[%clk 0:01:03.7]} 28... Nxf6
{[%clk 0:01:22.6]} 29. Qe6 {[%clk 0:01:03.9]} 29... Qxe6 {[%clk 0:01:22.1]} 30.
dxe6 {[%clk 0:01:04]} 30... Ne4 {[%clk 0:01:22]} 31. Re1 {[%clk 0:00:59.9]}
31... Nd2 {[%clk 0:01:20.4]} 32. Rxe5 {[%clk 0:00:59.6]} 32... Nxb3 {[%clk
0:01:20.5]} 33. e7 {[%clk 0:00:59.1]} 1-0

[Event "Late-Titled-Tuesday-Blitz-July-09-2024"]
[Site "Chess.com"]
[Date "2024.07.09"]
[Round "11"]
[White "praveenb2002"]
[Black "karinachess1"]
[Result "1-0"]
[WhiteElo "2859"]
[BlackElo "2685"]
[TimeControl "180+1"]
[EndTime "16:02:57 PDT"]
[Termination "praveenb2002 won by resignation"]

1. e4 {[%clk 0:03:00.9]} 1... e5 {[%clk 0:03:00.2]} 2. Nf3 {[%clk 0:02:59.1]}
2... Nc6 {[%clk 0:03:00.5]} 3. Bc4 {[%clk 0:02:58.8]} 3... Nf6 {[%clk 0:03:00]}
4. d4 {[%clk 0:02:53.4]} 4... exd4 {[%clk 0:02:55]} 5. e5 {[%clk 0:02:53.6]}
5... d5 {[%clk 0:02:53.6]} 6. Bb5 {[%clk 0:02:51.8]} 6... Ne4 {[%clk 0:02:53.7]}
7. Nxd4 {[%clk 0:02:51.6]} 7... Bd7 {[%clk 0:02:54.1]} 8. Bxc6 {[%clk 0:02:50]}
8... bxc6 {[%clk 0:02:55]} 9. O-O {[%clk 0:02:49.2]} 9... Bc5 {[%clk 0:02:51]}
10. f3 {[%clk 0:02:44.5]} 10... Ng5 {[%clk 0:02:49.9]} 11. f4 {[%clk 0:02:41.4]}
11... Ne4 {[%clk 0:02:46.5]} 12. Be3 {[%clk 0:02:40.8]} 12... O-O {[%clk
0:02:45.1]} 13. Nd2 {[%clk 0:02:38.6]} 13... f6 {[%clk 0:02:42.3]} 14. Nxe4
{[%clk 0:02:33.8]} 14... dxe4 {[%clk 0:02:43.2]} 15. Qe2 {[%clk 0:02:34.4]}
15... Bg4 {[%clk 0:02:36.4]} 16. Qf2 {[%clk 0:02:33.4]} 16... fxe5 {[%clk
0:02:32.8]} 17. Nxc6 {[%clk 0:02:30.8]} 17... Bxe3 {[%clk 0:02:11.4]} 18. Qxe3
{[%clk 0:02:31.7]} 18... Qd6 {[%clk 0:01:45.1]} 19. Nxe5 {[%clk 0:02:31.7]}
19... Bf5 {[%clk 0:01:38.9]} 20. Rad1 {[%clk 0:02:26.4]} 20... Qb6 {[%clk
0:01:36.4]} 21. Qxb6 {[%clk 0:02:23.2]} 21... axb6 {[%clk 0:01:34.4]} 22. a3
{[%clk 0:02:22.5]} 22... Rad8 {[%clk 0:01:32.3]} 23. Kf2 {[%clk 0:02:17.3]}
23... Bc8 {[%clk 0:01:12.4]} 24. Ke3 {[%clk 0:02:15.8]} 24... Bb7 {[%clk
0:01:12.7]} 25. Nd7 {[%clk 0:02:06.5]} 25... Rfe8 {[%clk 0:01:09.9]} 26. Rd2
{[%clk 0:02:04.2]} 26... Kf7 {[%clk 0:01:08.3]} 27. Rfd1 {[%clk 0:02:03]} 27...
Ke7 {[%clk 0:01:08.1]} 28. Ne5 {[%clk 0:02:02.1]} 28... Rxd2 {[%clk 0:01:08]}
29. Rxd2 {[%clk 0:02:03]} 29... Rd8 {[%clk 0:01:08.4]} 30. Rxd8 {[%clk
0:02:02.4]} 30... Kxd8 {[%clk 0:01:09.3]} 31. Nf7+ {[%clk 0:02:02.6]} 31... Ke7
{[%clk 0:01:07.9]} 32. Ng5 {[%clk 0:02:03.2]} 32... h6 {[%clk 0:00:59.5]} 33.
Nxe4 {[%clk 0:02:03.3]} 33... Ke6 {[%clk 0:00:58.5]} 34. g4 {[%clk 0:02:02.6]}
34... Kd5 {[%clk 0:00:51.3]} 35. Ng3 {[%clk 0:01:59.6]} 35... Bc8 {[%clk
0:00:49.9]} 36. Nf5 {[%clk 0:01:55.9]} 36... h5 {[%clk 0:00:34.6]} 37. Ne7+
{[%clk 0:01:55.7]} 1-0

[Event "Late-Titled-Tuesday-Blitz-July-09-2024"]
[Site "Chess.com"]
[Date "2024.07.09"]
[Round "11"]
[White "Burgsvik"]
[Black "Nbk90"]
[Result "1-0"]
[WhiteElo "2263"]
[BlackElo "2227"]
[TimeControl "180+1"]
[EndTime "16:03:02 PDT"]
[Termination "Burgsvik won by resignation"]

1. e4 {[%clk 0:03:00.9]} 1... e6 {[%clk 0:02:59.9]} 2. d4 {[%clk 0:02:59.9]}
2... d5 {[%clk 0:02:59.9]} 3. e5 {[%clk 0:03:00.8]} 3... c5 {[%clk 0:02:59.7]}
4. c3 {[%clk 0:03:01.7]} 4... Nc6 {[%clk 0:02:59.9]} 5. Nf3 {[%clk 0:03:02.2]}
5... Qb6 {[%clk 0:03:00.3]} 6. a3 {[%clk 0:03:02.4]} 6... c4 {[%clk 0:03:00.3]}
7. b4 {[%clk 0:03:02.2]} 7... cxb3 {[%clk 0:02:56.2]} 8. Bb2 {[%clk 0:03:02.4]}
8... Na5 {[%clk 0:02:55]} 9. Nbd2 {[%clk 0:03:03.3]} 9... Bd7 {[%clk 0:02:54.2]}
10. c4 {[%clk 0:03:03.6]} 10... Ne7 {[%clk 0:02:47.6]} 11. Bd3 {[%clk
0:02:53.4]} 11... Rc8 {[%clk 0:02:35.7]} 12. c5 {[%clk 0:02:53.4]} 12... Qc7
{[%clk 0:02:34.8]} 13. O-O {[%clk 0:02:52]} 13... Ba4 {[%clk 0:02:29]} 14. Qe2
{[%clk 0:02:46.7]} 14... Ng6 {[%clk 0:02:25]} 15. Bb5+ {[%clk 0:02:44.6]} 15...
Bxb5 {[%clk 0:02:24.5]} 16. Qxb5+ {[%clk 0:02:45.5]} 16... Nc6 {[%clk
0:02:23.1]} 17. Nxb3 {[%clk 0:02:44.6]} 17... Be7 {[%clk 0:02:21]} 18. a4 {[%clk
0:02:43.9]} 18... O-O {[%clk 0:02:20.1]} 19. a5 {[%clk 0:02:43.5]} 19... a6
{[%clk 0:02:17.7]} 20. Qb6 {[%clk 0:02:43.2]} 20... Bd8 {[%clk 0:02:14.7]} 21.
Qxc7 {[%clk 0:02:42.5]} 21... Bxc7 {[%clk 0:02:15.6]} 22. Bc3 {[%clk 0:02:42]}
22... Nf4 {[%clk 0:02:13.4]} 23. Rfe1 {[%clk 0:02:37.2]} 23... Rfe8 {[%clk
0:02:00.4]} 24. g3 {[%clk 0:02:37.2]} 24... Ng6 {[%clk 0:01:59.9]} 25. Re3
{[%clk 0:02:27.8]} 25... f6 {[%clk 0:01:59.4]} 26. exf6 {[%clk 0:02:24.6]} 26...
gxf6 {[%clk 0:02:00.3]} 27. Ne1 {[%clk 0:02:23.7]} 27... e5 {[%clk 0:01:58]} 28.
Nd3 {[%clk 0:02:20]} 28... e4 {[%clk 0:01:52.9]} 29. Nb4 {[%clk 0:02:17.2]}
29... f5 {[%clk 0:01:48]} 30. Nxd5 {[%clk 0:02:14]} 30... f4 {[%clk 0:01:34.9]}
31. Rxe4 {[%clk 0:01:57.4]} 31... Rxe4 {[%clk 0:01:22.9]} 32. Nf6+ {[%clk
0:01:56.6]} 32... Kf7 {[%clk 0:01:23.8]} 33. Nxe4 {[%clk 0:01:57.3]} 33... Re8
{[%clk 0:01:23.8]} 34. Nbd2 {[%clk 0:01:50.6]} 34... fxg3 {[%clk 0:01:21.7]} 35.
hxg3 {[%clk 0:01:49.7]} 35... Rd8 {[%clk 0:01:19.6]} 36. Nf3 {[%clk 0:01:41.6]}
36... Re8 {[%clk 0:01:17]} 37. Nfg5+ {[%clk 0:01:37.3]} 37... Ke7 {[%clk
0:01:02]} 38. d5 {[%clk 0:01:36.9]} 1-0